Workbook

Sheet 随州市
B4: 2019年政府债券发行及还本付息表
L7: 单位：万元
B8: 地区 | C8: 政府债券发行 | H8: 政府债券还本付息
B9: 合计 | C9: 小计 | D9: 新增债券 | F9: 再融资债券 | H9: 小计 | I9: 还本 | K9: 付息
D10: 一般债券 | E10: 专项债券 | F10: 一般债券 | G10: 专项债券 | I10: 一般债券 | J10: 专项债券 | K10: 一般债券 | L10: 专项债券
B11: 随州市 | C11: =SUM(C12:C15) -> 564903 | D11: 121975 | E11: 219900 | F11: 153493 | G11: 69535 | H11: 276526 | I11: 158369 | J11: =SUM(J12:J15) -> 69535 | K11: =SUM(K12:K15) -> 30209 | L11: =SUM(L12:L15) -> 18413
B12: 随州市本级 | C12: =D12+E12+F12+G12 -> 231330 | D12: 34290 | E12: 138800 | F12: 22686 | G12: 35554 | H12: =I12+J12+L12+K12 -> 77522 | I12: 27559 | J12: 35554 | K12: 6530 | L12: 7879
B13: 曾都区 | C13: =D13+E13+F13+G13 -> 92625 | D13: 28856 | E13: 21600 | F13: 34760 | G13: 7409 | H13: =I13+J13+L13+K13 -> 50290 | I13: 34762 | J13: 7409 | K13: 5869 | L13: 2250
B14: 随县 | C14: =D14+E14+F14+G14 -> 134304 | D14: 29521 | E14: 47000 | F14: 38447 | G14: 19336 | H14: =I14+J14+L14+K14 -> 69529 | I14: 38448 | J14: 19336 | K14: 7600 | L14: 4145
B15: 广水 | C15: =D15+E15+F15+G15 -> 106644 | D15: 29308 | E15: 12500 | F15: 57600 | G15: 7236 | H15: =I15+J15+L15+K15 -> 79185 | I15: 57600 | J15: 7236 | K15: 10210 | L15: 4139

Sheet 随州市本级
B4: 2019年政府债券发行及还本付息表
L7: 单位：万元
B8: 地区 | C8: 政府债券发行 | H8: 政府债券还本付息
B9: 合计 | C9: 小计 | D9: 新增债券 | F9: 再融资债券 | H9: 小计 | I9: 还本 | K9: 付息
D10: 一般债券 | E10: 专项债券 | F10: 一般债券 | G10: 专项债券 | I10: 一般债券 | J10: 专项债券 | K10: 一般债券 | L10: 专项债券
B11: 随州市本级 | C11: =D11+E11+F11+G11 -> 231330 | D11: 34290 | E11: 138800 | F11: 22686 | G11: 35554 | H11: =I11+J11+L11+K11 -> 77522 | I11: 27559 | J11: 35554 | K11: 6530 | L11: 7879
